[Event "Open Nuevo Centro. Jornada 1"]
[Site "Chess.com"]
[Date "2020.06.19"]
[Round "3"]
[White "Torres Biosca, Roberto"]
[Black "Perrot, Fabien "]
[Result "0-1"]
[WhiteElo "670"]
[BlackElo "979"]
[TimeControl "180+2"]
[EndTime "11:00:03 PDT"]
[Termination "Victoria de InspiredMinds por jaque mate"]

1. e4 {[%clk 0:03:01.7]} 1... e5 {[%clk 0:02:59.2]} 2. Bc4 {[%clk 0:03:01.4]}
2... Nf6 {[%clk 0:02:54.8]} 3. d3 {[%clk 0:02:59.8]} 3... Bc5 {[%clk 0:02:49.9]}
4. Bg5 {[%clk 0:02:58.6]} 4... O-O {[%clk 0:02:45.1]} 5. Bxf6 {[%clk 0:02:54.9]}
5... Qxf6 {[%clk 0:02:47]} 6. Nh3 {[%clk 0:02:53.3]} 6... d6 {[%clk 0:02:42.9]}
7. O-O {[%clk 0:02:53.3]} 7... Qg6 {[%clk 0:02:01.3]} 8. Qf3 {[%clk 0:02:44.7]}
8... Nc6 {[%clk 0:01:28]} 9. Nd2 {[%clk 0:02:40.2]} 9... Nd4 {[%clk 0:01:24.6]}
10. Qe3 {[%clk 0:02:35]} 10... Nxc2 {[%clk 0:00:55.6]} 11. Qf3 {[%clk
0:02:30.4]} 11... Nxa1 {[%clk 0:00:48.2]} 12. g3 {[%clk 0:02:28.9]} 12... Bxh3
{[%clk 0:00:36.4]} 13. Rxa1 {[%clk 0:02:25.1]} 13... Rae8 {[%clk 0:00:34.7]} 14.
Rc1 {[%clk 0:02:24]} 14... Bb6 {[%clk 0:00:33.5]} 15. Rc2 {[%clk 0:02:24.2]}
15... c6 {[%clk 0:00:22.7]} 16. Nb3 {[%clk 0:02:22.6]} 16... Bd8 {[%clk
0:00:21.5]} 17. Na5 {[%clk 0:02:23]} 17... Bxa5 {[%clk 0:00:19.3]} 18. Rc1
{[%clk 0:02:21.8]} 18... Bd8 {[%clk 0:00:19.7]} 19. Rd1 {[%clk 0:02:20]} 19...
Qf6 {[%clk 0:00:19.6]} 20. Re1 {[%clk 0:02:20.6]} 20... Qxf3 {[%clk 0:00:18.6]}
21. Rf1 {[%clk 0:02:18]} 21... Qg2# {[%clk 0:00:19.4]} 0

[Event "Open Nuevo Centro. Jornada 1"]
[Site "Chess.com"]
[Date "2020.06.19"]
[Round "3"]
[White "Clement G�mez, Jos� Antonio"]
[Black "Movsisyan, Tigran"]
[Result "1-0"]
[WhiteElo "2490"]
[BlackElo "1888"]
[TimeControl "180+2"]
[EndTime "11:00:17 PDT"]
[Termination "Victoria de P4AD por abandono"]

1. c4 {[%clk 0:03:01.9]} 1... c6 {[%clk 0:02:58.1]} 2. g3 {[%clk 0:03:02.7]}
2... e6 {[%clk 0:02:55.8]} 3. Bg2 {[%clk 0:03:04.6]} 3... d5 {[%clk 0:02:56.6]}
4. Nf3 {[%clk 0:03:06.5]} 4... Nf6 {[%clk 0:02:55.9]} 5. O-O {[%clk 0:03:08.4]}
5... Be7 {[%clk 0:02:54.9]} 6. d4 {[%clk 0:03:09.4]} 6... O-O {[%clk 0:02:55.3]}
7. Nbd2 {[%clk 0:03:11]} 7... Nbd7 {[%clk 0:02:55.8]} 8. Qc2 {[%clk 0:03:12.5]}
8... Rb8 {[%clk 0:02:40.5]} 9. b3 {[%clk 0:03:12.5]} 9... dxc4 {[%clk
0:02:39.5]} 10. Nxc4 {[%clk 0:03:12.6]} 10... c5 {[%clk 0:02:38.5]} 11. Bf4
{[%clk 0:03:11.5]} 11... Ra8 {[%clk 0:02:37]} 12. Rad1 {[%clk 0:03:11.6]} 12...
Nd5 {[%clk 0:02:33.6]} 13. Bd6 {[%clk 0:03:00.9]} 13... cxd4 {[%clk 0:02:18.7]}
14. Nxd4 {[%clk 0:02:53.1]} 14... Bxd6 {[%clk 0:02:13.1]} 15. Nxd6 {[%clk
0:02:55]} 15... N7f6 {[%clk 0:02:11.7]} 16. Nxc8 {[%clk 0:02:39.4]} 16... Rxc8
{[%clk 0:02:11.3]} 17. Qb2 {[%clk 0:02:40.8]} 17... Qb6 {[%clk 0:01:58.1]} 18.
e3 {[%clk 0:02:41.6]} 18... h6 {[%clk 0:01:49.7]} 19. h3 {[%clk 0:02:41.3]}
19... Rfd8 {[%clk 0:01:39]} 20. a3 {[%clk 0:02:40.4]} 20... Nc3 {[%clk
0:01:31.5]} 21. Rc1 {[%clk 0:02:29.1]} 21... Ncd5 {[%clk 0:00:51.8]} 22. b4
{[%clk 0:02:23.1]} 22... a5 {[%clk 0:00:48.2]} 23. b5 {[%clk 0:02:17.1]} 23...
Qc6 {[%clk 0:00:21.3]} 24. bxc6 {[%clk 0:02:15.6]} 1

[Event "Open Nuevo Centro. Jornada 1"]
[Site "Chess.com"]
[Date "2020.06.19"]
[Round "3"]
[White "Borissov, Juli�n"]
[Black "Garcia Trobat, Francisco"]
[Result "0-1"]
[WhiteElo "1841"]
[BlackElo "2225"]
[TimeControl "180+2"]
[EndTime "11:00:20 PDT"]
[Termination "Victoria de NoSure por tiempo"]

1. e4 {[%clk 0:03:01.9]} 1... c5 {[%clk 0:02:59.4]} 2. Nf3 {[%clk 0:03:02.2]}
2... d6 {[%clk 0:03:00.9]} 3. d4 {[%clk 0:03:01.9]} 3... cxd4 {[%clk 0:03:02.1]}
4. Nxd4 {[%clk 0:03:03.5]} 4... Nf6 {[%clk 0:03:03.5]} 5. Nc3 {[%clk 0:03:04.1]}
5... a6 {[%clk 0:03:04.1]} 6. Bg5 {[%clk 0:03:04.6]} 6... Nbd7 {[%clk
0:03:03.3]} 7. Qd2 {[%clk 0:03:03.3]} 7... Qc7 {[%clk 0:02:58.4]} 8. O-O-O
{[%clk 0:03:01.2]} 8... e6 {[%clk 0:02:58.2]} 9. Bd3 {[%clk 0:02:55.8]} 9... Be7
{[%clk 0:02:58.2]} 10. f4 {[%clk 0:02:48.8]} 10... b5 {[%clk 0:02:53.4]} 11.
Rhe1 {[%clk 0:02:36]} 11... O-O {[%clk 0:02:40.2]} 12. e5 {[%clk 0:02:28.3]}
12... dxe5 {[%clk 0:02:39.2]} 13. fxe5 {[%clk 0:02:28.9]} 13... Nxe5 {[%clk
0:02:39.3]} 14. Bf4 {[%clk 0:02:15.6]} 14... Nxd3+ {[%clk 0:02:34.9]} 15. cxd3
{[%clk 0:02:12.7]} 15... Bd6 {[%clk 0:02:29]} 16. Bxd6 {[%clk 0:02:05.5]} 16...
Qxd6 {[%clk 0:02:29.5]} 17. Nf3 {[%clk 0:01:58.5]} 17... Bb7 {[%clk 0:02:26.8]}
18. Ne4 {[%clk 0:01:51.4]} 18... Qd8 {[%clk 0:02:06.6]} 0

[Event "Open Nuevo Centro. Jornada 1"]
[Site "Chess.com"]
[Date "2020.06.19"]
[Round "3"]
[White "Vorozbits Moisejevs, Daniels"]
[Black "Mart�nez Cuenca, Adri�n "]
[Result "1-0"]
[WhiteElo "924"]
[BlackElo "644"]
[TimeControl "180+2"]
[EndTime "11:00:23 PDT"]
[Termination "Victoria de UgnadaKnukes por jaque mate"]

1. e4 {[%clk 0:03:01.9]} 1... e5 {[%clk 0:02:57.6]} 2. Nf3 {[%clk 0:03:03]} 2...
Nc6 {[%clk 0:02:55]} 3. Bc4 {[%clk 0:03:03.4]} 3... Nb4 {[%clk 0:02:45.5]} 4. a3
{[%clk 0:03:02.9]} 4... Nc6 {[%clk 0:02:43.1]} 5. O-O {[%clk 0:03:00]} 5... Nf6
{[%clk 0:02:39.4]} 6. Nc3 {[%clk 0:03:00.2]} 6... Na5 {[%clk 0:02:36.6]} 7. Ba2
{[%clk 0:02:59.7]} 7... Nb3 {[%clk 0:02:33.3]} 8. Bxb3 {[%clk 0:02:57.4]} 8...
c5 {[%clk 0:02:24.3]} 9. Nxe5 {[%clk 0:02:56.7]} 9... d6 {[%clk 0:02:19.5]} 10.
Nxf7 {[%clk 0:02:56.1]} 10... Kd7 {[%clk 0:02:16.8]} 11. Nxd8 {[%clk 0:02:55.8]}
11... b5 {[%clk 0:02:00.6]} 12. Nf7 {[%clk 0:02:54]} 12... a5 {[%clk 0:01:51.5]}
13. Nxh8 {[%clk 0:02:47.9]} 13... Ng4 {[%clk 0:01:46.5]} 14. Qxg4+ {[%clk
0:02:47]} 14... Kc6 {[%clk 0:01:19.2]} 15. Bd5+ {[%clk 0:02:46.1]} 15... Kb6
{[%clk 0:01:16]} 16. Qg5 {[%clk 0:02:31.2]} 16... h6 {[%clk 0:00:50.5]} 17. Qd8+
{[%clk 0:02:28.1]} 17... Ka6 {[%clk 0:00:34.2]} 18. Qc7 {[%clk 0:02:10.4]} 18...
Ra7 {[%clk 0:00:18.8]} 19. Qxc8+ {[%clk 0:02:08.3]} 19... Kb6 {[%clk 0:00:10.1]}
20. Qb8+ {[%clk 0:02:06]} 20... Rb7 {[%clk 0:00:08.6]} 21. Qxb7# {[%clk
0:02:04]} 1

[Event "Open Nuevo Centro. Jornada 1"]
[Site "Chess.com"]
[Date "2020.06.19"]
[Round "3"]
[White "Castellano L�pez, Javier"]
[Black "Mart�nez Cuenca, Jose Andr�s"]
[Result "1-0"]
[WhiteElo "1750"]
[BlackElo "1231"]
[TimeControl "180+2"]
[EndTime "11:00:27 PDT"]
[Termination "Victoria de its_xavi_official por abandono"]

1. d4 {[%clk 0:03:01.9]} 1... c5 {[%clk 0:02:57.3]} 2. d5 {[%clk 0:03:01.4]}
2... Nf6 {[%clk 0:02:53.8]} 3. c4 {[%clk 0:03:01.8]} 3... d6 {[%clk 0:02:51.4]}
4. Nc3 {[%clk 0:03:00]} 4... Bf5 {[%clk 0:02:51.1]} 5. Nf3 {[%clk 0:02:57.6]}
5... Nbd7 {[%clk 0:02:47.4]} 6. Bg5 {[%clk 0:02:51.2]} 6... h6 {[%clk 0:02:34]}
7. Bh4 {[%clk 0:02:50.3]} 7... g5 {[%clk 0:02:32.1]} 8. Bg3 {[%clk 0:02:50.3]}
8... Bg7 {[%clk 0:02:31.6]} 9. Nd2 {[%clk 0:02:49.5]} 9... O-O {[%clk
0:02:28.3]} 10. e4 {[%clk 0:02:49.4]} 10... Bg6 {[%clk 0:02:26.5]} 11. f3 {[%clk
0:02:49]} 11... e5 {[%clk 0:02:24]} 12. Bd3 {[%clk 0:02:45.7]} 12... Qe7 {[%clk
0:02:14.4]} 13. h4 {[%clk 0:02:44.7]} 13... Rae8 {[%clk 0:02:05.7]} 14. hxg5
{[%clk 0:02:43.6]} 14... hxg5 {[%clk 0:02:05.9]} 15. Ke2 {[%clk 0:02:27.8]}
15... Rd8 {[%clk 0:01:49.7]} 16. Nf1 {[%clk 0:02:25.7]} 16... Rde8 {[%clk
0:01:48.4]} 17. Ne3 {[%clk 0:02:24.7]} 17... Rd8 {[%clk 0:01:39]} 18. Qd2 {[%clk
0:02:25.6]} 18... Rde8 {[%clk 0:01:37.8]} 19. Rh2 {[%clk 0:02:26.3]} 19... Rd8
{[%clk 0:01:31.2]} 20. Rah1 {[%clk 0:02:26.7]} 20... Rde8 {[%clk 0:01:29.4]} 21.
Nf1 {[%clk 0:02:18.4]} 21... Rd8 {[%clk 0:01:28]} 22. Qxg5 {[%clk 0:02:18.7]}
22... Rde8 {[%clk 0:01:25.1]} 23. Ne3 {[%clk 0:02:17.5]} 23... Rd8 {[%clk
0:01:11.9]} 24. Nf5 {[%clk 0:02:18.3]} 24... Qe8 {[%clk 0:01:06.8]} 25. Nxd6
{[%clk 0:02:11.6]} 25... Qe7 {[%clk 0:01:00.5]} 26. Nf5 {[%clk 0:02:12.4]} 26...
Qe8 {[%clk 0:01:00.6]} 27. d6 {[%clk 0:02:07.6]} 27... Nb8 {[%clk 0:00:51.9]}
28. Ne7+ {[%clk 0:02:06.7]} 28... Qxe7 {[%clk 0:00:50.9]} 29. dxe7 {[%clk
0:02:06.2]} 1

[Event "Open Nuevo Centro. Jornada 1"]
[Site "Chess.com"]
[Date "2020.06.19"]
[Round "3"]
[White "Gracia Calvo, Andres"]
[Black "Kovacevic, Slobodan"]
[Result "0-1"]
[WhiteElo "1835"]
[BlackElo "2066"]
[TimeControl "180+2"]
[EndTime "11:00:36 PDT"]
[Termination "Victoria de nikko110 por jaque mate"]

1. d4 {[%clk 0:03:00.8]} 1... Nf6 {[%clk 0:02:56]} 2. Nf3 {[%clk 0:03:02.1]}
2... e6 {[%clk 0:02:54.7]} 3. Bf4 {[%clk 0:03:03.4]} 3... c5 {[%clk 0:02:53.5]}
4. e3 {[%clk 0:03:04.6]} 4... b6 {[%clk 0:02:48.9]} 5. Bd3 {[%clk 0:03:03.4]}
5... cxd4 {[%clk 0:02:47.9]} 6. exd4 {[%clk 0:03:03.7]} 6... Bb7 {[%clk
0:02:46.6]} 7. Nbd2 {[%clk 0:03:03.2]} 7... a6 {[%clk 0:02:45.1]} 8. O-O {[%clk
0:03:02.1]} 8... d6 {[%clk 0:02:43.8]} 9. h3 {[%clk 0:03:01.7]} 9... Nbd7 {[%clk
0:02:42.3]} 10. Re1 {[%clk 0:03:01.7]} 10... Be7 {[%clk 0:02:41.2]} 11. c3
{[%clk 0:02:59.8]} 11... O-O {[%clk 0:02:39.8]} 12. Qe2 {[%clk 0:02:58.8]} 12...
Re8 {[%clk 0:02:37.6]} 13. Rad1 {[%clk 0:02:56.8]} 13... Qc7 {[%clk 0:02:34.7]}
14. Bb1 {[%clk 0:02:56.1]} 14... b5 {[%clk 0:02:32.4]} 15. Ng5 {[%clk 0:02:46]}
15... Bf8 {[%clk 0:02:29.7]} 16. Nge4 {[%clk 0:02:44.7]} 16... Nd5 {[%clk
0:02:27.9]} 17. Bg3 {[%clk 0:02:38.6]} 17... Rac8 {[%clk 0:02:19.4]} 18. Qh5
{[%clk 0:02:32.3]} 18... h6 {[%clk 0:02:13.8]} 19. Nf3 {[%clk 0:02:26.8]} 19...
f5 {[%clk 0:02:04.9]} 20. Ned2 {[%clk 0:01:49.3]} 20... N7f6 {[%clk 0:02:01.5]}
21. Qh4 {[%clk 0:01:45.1]} 21... g5 {[%clk 0:01:58.7]} 22. Nxg5 {[%clk
0:01:41.3]} 22... hxg5 {[%clk 0:01:56.6]} 23. Qxg5+ {[%clk 0:01:42.2]} 23... Qg7
{[%clk 0:01:54.2]} 24. Qh5 {[%clk 0:01:33.6]} 24... f4 {[%clk 0:01:42.9]} 25.
Bh4 {[%clk 0:01:23.1]} 25... Nxh5 {[%clk 0:01:40.8]} 26. Nf3 {[%clk 0:01:18.8]}
26... Nxc3 {[%clk 0:01:38.1]} 27. bxc3 {[%clk 0:01:18.7]} 27... Bxf3 {[%clk
0:01:35.9]} 28. Rd3 {[%clk 0:01:18.4]} 28... Qxg2# {[%clk 0:01:27.8]} 0

[Event "Open Nuevo Centro. Jornada 1"]
[Site "Chess.com"]
[Date "2020.06.19"]
[Round "3"]
[White "Cebri�n Granado, Guille"]
[Black "Grigorev, Artur "]
[Result "0-1"]
[WhiteElo "347"]
[BlackElo "868"]
[TimeControl "180+2"]
[EndTime "11:00:39 PDT"]
[Termination "Victoria de Arturiog por tiempo"]

1. e4 {[%clk 0:02:18.8]} 1... e5 {[%clk 0:02:58.7]} 2. Nf3 {[%clk 0:02:20.7]}
2... Nc6 {[%clk 0:02:58.5]} 3. Nc3 {[%clk 0:02:20.2]} 3... Bc5 {[%clk
0:02:55.9]} 4. Bc4 {[%clk 0:02:22.1]} 4... Nf6 {[%clk 0:02:55.6]} 5. h4 {[%clk
0:02:19.5]} 5... d6 {[%clk 0:02:50.8]} 6. g4 {[%clk 0:02:21.4]} 6... Bxg4 {[%clk
0:02:50.4]} 7. Ng5 {[%clk 0:01:48.3]} 7... Bxd1 {[%clk 0:02:28.7]} 8. f4 {[%clk
0:01:50.2]} 8... Nxe4 {[%clk 0:02:20.9]} 9. Kxd1 {[%clk 0:01:52.1]} 9... Nxc3+
{[%clk 0:02:21]} 10. bxc3 {[%clk 0:01:38.7]} 10... exf4 {[%clk 0:02:21.1]} 11.
Re1+ {[%clk 0:01:31]} 11... Ne5 {[%clk 0:02:18.9]} 12. d3 {[%clk 0:01:26.4]}
12... O-O {[%clk 0:02:11.4]} 13. Kd2 {[%clk 0:01:01.1]} 13... Nf3+ {[%clk
0:02:06.3]} 14. Kd1 {[%clk 0:00:59.3]} 14... Nxe1 {[%clk 0:02:06.8]} 15. Bd2
{[%clk 0:01:01.2]} 15... Ng2 {[%clk 0:02:05.2]} 16. Nf3 {[%clk 0:00:41.2]} 16...
Nxh4 {[%clk 0:02:01.3]} 17. Nxh4 {[%clk 0:00:35.7]} 17... Qxh4 {[%clk
0:02:03.2]} 18. Be1 {[%clk 0:00:32.7]} 18... Qg4+ {[%clk 0:02:00.4]} 19. Kc1
{[%clk 0:00:21]} 19... Ba3+ {[%clk 0:01:58]} 0

[Event "Open Nuevo Centro. Jornada 1"]
[Site "Chess.com"]
[Date "2020.06.19"]
[Round "3"]
[White "Valverde Alcaide, Miguel Alejandro"]
[Black "Rabbani Perez, Oumaima "]
[Result "1-0"]
[WhiteElo "923"]
[BlackElo "700"]
[TimeControl "180+2"]
[EndTime "11:00:43 PDT"]
[Termination "Victoria de mentafurterei por jaque mate"]

1. e4 {[%clk 0:03:00.5]} 1... e5 {[%clk 0:03:00.2]} 2. Bc4 {[%clk 0:02:58.8]}
2... Bc5 {[%clk 0:02:57.8]} 3. Qe2 {[%clk 0:02:55.5]} 3... Nf6 {[%clk
0:02:54.3]} 4. Nc3 {[%clk 0:02:52.7]} 4... Nc6 {[%clk 0:02:52.9]} 5. Nf3 {[%clk
0:02:46.7]} 5... Nd4 {[%clk 0:02:49.2]} 6. Nxd4 {[%clk 0:02:45.8]} 6... exd4
{[%clk 0:02:46.2]} 7. e5 {[%clk 0:02:39.6]} 7... dxc3 {[%clk 0:02:44.5]} 8.
exf6+ {[%clk 0:02:37]} 8... Be7 {[%clk 0:02:36.2]} 9. fxe7 {[%clk 0:02:34]} 9...
Qxe7 {[%clk 0:02:34.7]} 10. Qxe7+ {[%clk 0:02:33]} 10... Kxe7 {[%clk 0:02:34.9]}
11. dxc3 {[%clk 0:02:31.7]} 11... h5 {[%clk 0:02:27.1]} 12. O-O {[%clk
0:02:30.6]} 12... Rh6 {[%clk 0:02:26.7]} 13. Bxh6 {[%clk 0:02:30.1]} 13... gxh6
{[%clk 0:02:26.8]} 14. Rfe1+ {[%clk 0:02:30.3]} 14... Kd8 {[%clk 0:02:25.7]} 15.
Bxf7 {[%clk 0:02:26.1]} 15... d6 {[%clk 0:02:23.6]} 16. Re8+ {[%clk 0:02:25.3]}
16... Kd7 {[%clk 0:02:23.1]} 17. Rae1 {[%clk 0:02:23.3]} 17... Kc6 {[%clk
0:02:18]} 18. b4 {[%clk 0:02:16.3]} 18... Kb5 {[%clk 0:02:17.7]} 19. a4+ {[%clk
0:02:02.3]} 19... Kxa4 {[%clk 0:02:17]} 20. Ra1+ {[%clk 0:02:01.5]} 20... Kb5
{[%clk 0:02:15.1]} 21. Bxh5 {[%clk 0:01:57.5]} 21... Kc4 {[%clk 0:02:13.6]} 22.
f4 {[%clk 0:01:56.6]} 22... Kxc3 {[%clk 0:02:13.5]} 23. Bg6 {[%clk 0:01:42.3]}
23... Kxb4 {[%clk 0:02:11.8]} 24. f5 {[%clk 0:01:42.2]} 24... Bxf5 {[%clk
0:02:08.6]} 25. Rxa8 {[%clk 0:01:39.9]} 25... Bxg6 {[%clk 0:02:07.1]} 26. R8xa7
{[%clk 0:01:37.4]} 26... Kb5 {[%clk 0:02:05.3]} 27. Rxb7+ {[%clk 0:01:38.2]}
27... Kc6 {[%clk 0:02:05.7]} 28. Raa7 {[%clk 0:01:34.1]} 28... Bxc2 {[%clk
0:02:02.3]} 29. Rxc7+ {[%clk 0:01:33.2]} 29... Kb6 {[%clk 0:01:55.8]} 30. Rab7+
{[%clk 0:01:28.6]} 30... Ka6 {[%clk 0:01:54.7]} 31. Rb8 {[%clk 0:01:26.4]} 31...
Bb3 {[%clk 0:01:41.8]} 32. Rxb3 {[%clk 0:01:23.3]} 32... d5 {[%clk 0:01:37.4]}
33. Rc8 {[%clk 0:01:22.6]} 33... Ka7 {[%clk 0:01:35.3]} 34. Rc1 {[%clk
0:01:18.7]} 34... Ka8 {[%clk 0:01:34.8]} 35. Ra1# {[%clk 0:01:18.5]} 1

[Event "Open Nuevo Centro. Jornada 1"]
[Site "Chess.com"]
[Date "2020.06.19"]
[Round "3"]
[White "Birnoveanu, Petru"]
[Black "Miranda Calvo, Max Rodrigo"]
[Result "0-1"]
[WhiteElo "1565"]
[BlackElo "1171"]
[TimeControl "180+2"]
[EndTime "11:00:49 PDT"]
[Termination "Victoria de bas-max-miranda por tiempo"]

1. e4 {[%clk 0:03:01.9]} 1... e5 {[%clk 0:02:58.7]} 2. Bc4 {[%clk 0:03:01.9]}
2... Nc6 {[%clk 0:02:56.5]} 3. Nf3 {[%clk 0:03:01.4]} 3... Bc5 {[%clk
0:02:56.3]} 4. O-O {[%clk 0:03:00.3]} 4... Nf6 {[%clk 0:02:52]} 5. d4 {[%clk
0:03:01.2]} 5... Bxd4 {[%clk 0:02:46.4]} 6. Nxd4 {[%clk 0:03:01.2]} 6... Nxd4
{[%clk 0:02:46.7]} 7. f4 {[%clk 0:03:02.2]} 7... d6 {[%clk 0:02:45.8]} 8. fxe5
{[%clk 0:03:02.7]} 8... dxe5 {[%clk 0:02:46.7]} 9. Bg5 {[%clk 0:03:03.1]} 9...
Bg4 {[%clk 0:02:38.4]} 10. Qc1 {[%clk 0:02:21.8]} 10... Be2 {[%clk 0:02:27.4]}
11. Bxf6 {[%clk 0:02:01]} 11... gxf6 {[%clk 0:02:25.4]} 12. c3 {[%clk
0:01:28.1]} 12... Bxf1 {[%clk 0:02:23.1]} 13. Kxf1 {[%clk 0:01:12.5]} 13... Ne6
{[%clk 0:02:07]} 14. Nd2 {[%clk 0:01:00.6]} 14... c6 {[%clk 0:02:03.7]} 15. Qe1
{[%clk 0:00:54.7]} 15... b5 {[%clk 0:02:03.9]} 16. Be2 {[%clk 0:00:42.8]} 16...
Nf4 {[%clk 0:02:03.6]} 17. Bf3 {[%clk 0:00:30.5]} 17... Qd3+ {[%clk 0:02:02]}
18. Kg1 {[%clk 0:00:27.8]} 18... O-O-O {[%clk 0:01:51.5]} 19. Nb3 {[%clk
0:00:28]} 19... Nh3+ {[%clk 0:01:44.8]} 20. Kh1 {[%clk 0:00:14]} 20... Ng5
{[%clk 0:01:42.3]} 0

[Event "Open Nuevo Centro. Jornada 1"]
[Site "Chess.com"]
[Date "2020.06.19"]
[Round "3"]
[White "Macias Pino, Diego"]
[Black "Casado Andreu, David"]
[Result "1-0"]
[WhiteElo "2168"]
[BlackElo "1571"]
[TimeControl "180+2"]
[EndTime "11:00:55 PDT"]
[Termination "Victoria de jesuimafe por abandono"]

1. e4 {[%clk 0:02:54.9]} 1... e5 {[%clk 0:03:00.2]} 2. Nf3 {[%clk 0:02:55.1]}
2... Nc6 {[%clk 0:03:01.5]} 3. d4 {[%clk 0:02:55.9]} 3... exd4 {[%clk
0:03:01.5]} 4. Bc4 {[%clk 0:02:57]} 4... Bb4+ {[%clk 0:02:59.6]} 5. c3 {[%clk
0:02:50.5]} 5... dxc3 {[%clk 0:03:00.8]} 6. bxc3 {[%clk 0:02:52.1]} 6... Ba5
{[%clk 0:03:02.3]} 7. Qd5 {[%clk 0:02:42.4]} 7... Qe7 {[%clk 0:02:57.4]} 8. Ng5
{[%clk 0:02:18]} 8... Nh6 {[%clk 0:02:54.8]} 9. O-O {[%clk 0:02:18.4]} 9... O-O
{[%clk 0:02:54.8]} 10. f4 {[%clk 0:02:19.6]} 10... Bb6+ {[%clk 0:02:51.7]} 11.
Kh1 {[%clk 0:02:19.5]} 11... d6 {[%clk 0:02:44.2]} 12. f5 {[%clk 0:02:21.4]}
12... Ne5 {[%clk 0:02:23.2]} 13. Bb3 {[%clk 0:01:55.6]} 13... Nhg4 {[%clk
0:02:17.5]} 14. Nh3 {[%clk 0:00:43.1]} 14... Nf6 {[%clk 0:02:06.6]} 15. Qb5
{[%clk 0:00:39.4]} 15... c6 {[%clk 0:02:04.8]} 16. Qe2 {[%clk 0:00:39.6]} 16...
Neg4 {[%clk 0:01:47.8]} 17. Nd2 {[%clk 0:00:36.6]} 17... Bxf5 {[%clk 0:01:40.4]}
18. Rxf5 {[%clk 0:00:36]} 18... g6 {[%clk 0:01:35.1]} 19. Rf1 {[%clk 0:00:36.3]}
19... d5 {[%clk 0:01:34.3]} 20. a4 {[%clk 0:00:28.8]} 20... dxe4 {[%clk
0:01:33.6]} 21. Ba3 {[%clk 0:00:30]} 21... Bc5 {[%clk 0:01:32.8]} 22. Bxc5
{[%clk 0:00:30.3]} 22... Qxc5 {[%clk 0:01:34.7]} 23. Nxe4 {[%clk 0:00:30.6]}
23... Qe7 {[%clk 0:01:29.6]} 24. Nxf6+ {[%clk 0:00:31.1]} 1

[Event "Open Nuevo Centro. Jornada 1"]
[Site "Chess.com"]
[Date "2020.06.19"]
[Round "3"]
[White "Gil Lopez, Alejandro"]
[Black "Haoyou, Deng"]
[Result "1/2-1/2"]
[WhiteElo "2040"]
[BlackElo "1815"]
[TimeControl "180+2"]
[EndTime "11:00:58 PDT"]
[Termination "Tablas por repetición de movimientos"]

1. e4 {[%clk 0:03:01.9]} 1... d6 {[%clk 0:03:00.9]} 2. Nf3 {[%clk 0:03:02.8]}
2... Nf6 {[%clk 0:03:02.8]} 3. Nc3 {[%clk 0:03:03.2]} 3... g6 {[%clk 0:03:04.1]}
4. d4 {[%clk 0:03:03.7]} 4... Bg7 {[%clk 0:03:05.4]} 5. Bg5 {[%clk 0:03:04.7]}
5... O-O {[%clk 0:03:05.7]} 6. Bc4 {[%clk 0:03:05.4]} 6... Nxe4 {[%clk
0:03:05.7]} 7. Nxe4 {[%clk 0:03:04.7]} 7... d5 {[%clk 0:03:07.1]} 8. Ng3 {[%clk
0:02:50]} 8... dxc4 {[%clk 0:03:07.7]} 9. c3 {[%clk 0:02:51.2]} 9... Bg4 {[%clk
0:03:06.7]} 10. h3 {[%clk 0:02:49.7]} 10... Bxf3 {[%clk 0:03:07]} 11. Qxf3
{[%clk 0:02:51.6]} 11... c6 {[%clk 0:03:00.4]} 12. O-O {[%clk 0:02:48.1]} 12...
Nd7 {[%clk 0:03:00.7]} 13. Rfe1 {[%clk 0:02:48.9]} 13... Nf6 {[%clk 0:02:55]}
14. Qe2 {[%clk 0:02:46.7]} 14... e6 {[%clk 0:02:48.7]} 15. Qxc4 {[%clk
0:02:45.6]} 15... Qd5 {[%clk 0:02:48.1]} 16. Qxd5 {[%clk 0:02:29.5]} 16... cxd5
{[%clk 0:02:44.1]} 17. a4 {[%clk 0:02:18.4]} 17... a5 {[%clk 0:02:42.4]} 18.
Rab1 {[%clk 0:02:18]} 18... Rfc8 {[%clk 0:02:42.1]} 19. Ne2 {[%clk 0:02:12.8]}
19... Rc7 {[%clk 0:02:39.4]} 20. Bf4 {[%clk 0:02:11.9]} 20... Rc6 {[%clk
0:02:38.5]} 21. Nc1 {[%clk 0:02:13.2]} 21... Rc4 {[%clk 0:02:35.6]} 22. Ra1
{[%clk 0:02:11.2]} 22... Rac8 {[%clk 0:02:35.5]} 23. Nd3 {[%clk 0:02:11.3]}
23... Ne4 {[%clk 0:02:22.9]} 24. Be5 {[%clk 0:02:08.3]} 24... Bxe5 {[%clk
0:02:23]} 25. Nxe5 {[%clk 0:02:10.2]} 25... R4c7 {[%clk 0:02:19.1]} 26. Rf1
{[%clk 0:02:03.8]} 26... Nd2 {[%clk 0:02:12.5]} 27. Rfd1 {[%clk 0:01:57.9]}
27... Nc4 {[%clk 0:02:13.4]} 28. Nd3 {[%clk 0:01:50.5]} 28... b6 {[%clk
0:02:09.9]} 29. Rab1 {[%clk 0:01:47.1]} 29... Nd6 {[%clk 0:02:01.8]} 30. f3
{[%clk 0:01:38.3]} 30... Kg7 {[%clk 0:02:02.1]} 31. Kf2 {[%clk 0:01:29.6]} 31...
h6 {[%clk 0:02:02.8]} 32. g4 {[%clk 0:01:28.4]} 32... Rc4 {[%clk 0:02:00.1]} 33.
Ra1 {[%clk 0:01:27.9]} 33... R4c7 {[%clk 0:01:44.4]} 34. Rab1 {[%clk 0:01:23.4]}
34... Rc4 {[%clk 0:01:44.7]} 35. Ra1 {[%clk 0:01:23.4]} 35... R4c7 {[%clk
0:01:45.8]} 36. Rab1 {[%clk 0:01:05]} 1/2-1